[Event "CZE-ch U10 Open 2023"]
[Site "Teplice"]
[Date "2023.03.18"]
[Round "9.7"]
[White "Simunek, Jakub Simon"]
[Black "Svoboda, Daniel"]
[Result "*"]
[ECO "B00"]
[WhiteElo "1970"]
[BlackElo "1748"]
[Annotator "TA"]
[PlyCount "20"]
[EventDate "2023.03.09"]
[EventType "swiss"]
[EventCountry "CZE"]
[SourceTitle "playchess.com"]
[Source "ChessBase"]
[SourceQuality "1"]
[TimeControl "40/5400+30:1800+30"]

{[%evp 10,20,40,43,52,43,36,0,58,-100,20,16,30]} 1. e4 {[%emt 0:00:02]} c5 {[%emt 0:01:52]} 2. Nf3 {[%emt 0:00:13]} Nc6 {[%emt 0:01:26]} 3. Bb5 {[%emt 0:00:23]} g6 {[%emt 0:01:17]} 4. O-O {[%emt 0:00:35]} Bg7 {[%emt 0:00:41]} 5. c3 {[%emt 0:00:40]} d6 {[%emt 0:00:29]} 6. d4 {[%emt 0:01:55]} Bd7 {[%emt 0:01:21] B31: Sicilian: 2...Nc6 3 Bb5 g6.} 7. Be3 {[%emt 0:02:38]} Nf6 {[%emt 0:04:29]} 8. Nbd2 {[%emt 0:04:32]} ({But not} 8. dxc5 Nxe4 9. cxd6 Nxd6 $11) (8. d5 $5 {[%cal Rd5c6]} Ne5 9. Bxd7+ Nfxd7 10. Nxe5 Nxe5 11. f4 $11) 8... O-O {[%emt 0:03:19] [#]} (8... cxd4 $11 9. cxd4 (9. Nxd4 Nxd4 10. Bxd7+ Qxd7 $11) (9. Bxd4 O-O $11) 9... Ng4) 9. h3 $146 {[%emt 0:03:24] [#]} (9. dxc5 $14 {keeps the upper hand.} Ng4 10. Qe2) ({Predecessor:} 9. dxc5 a6 10. Ba4 dxc5 11. Bxc5 b6 12. Ba3 b5 13. Bc2 a5 14. b3 Qc7 15. Bc5 {1-0 Basilico,D (1632)-Rossini,L (1440) Bresso op 6th 2007 (6)}) 9... cxd4 {[%emt 0:02:17]} (9... Nxd4 $1 $17 10. Bxd7 Nxf3+ 11. Nxf3 Qxd7) 10. cxd4 $11 {[%emt 0:01:26]} d5 {[%emt 0:01:22] Weighted Error Value: White=0.75/Black=0.51} *

[Event "CZE-ch U10 Open 2023"]
[Site "Teplice"]
[Date "2023.03.18"]
[Round "9.8"]
[White "Slaby, Matej"]
[Black "Tillmann, Stanislav"]
[Result "*"]
[WhiteElo "1932"]
[BlackElo "1907"]
[Annotator "TA"]
[PlyCount "36"]
[EventDate "2023.03.09"]
[EventType "swiss"]
[EventCountry "CZE"]
[SourceTitle "playchess.com"]
[Source "ChessBase"]
[SourceQuality "1"]
[TimeControl "40/5400+30:1800+30"]

{[%evp 14,36,0,-33,-8,-32,-37,-40,-38,-75,-66,-125,-109,-152,35,21,26,44,222,217,217,197,230,220,528]} 1. e4 {[%emt 0:00:02]} c5 {[%emt 0:10:01]} 2. Nf3 {[%emt 0:00:06]} d6 {[%emt 0:00:07]} 3. Nc3 {[%emt 0:00:13]} Nf6 {[%emt 0:00:14]} 4. d4 {[%emt 0:00:22]} cxd4 {[%emt 0:00:16]} 5. Nxd4 {[%emt 0:00:49]} a6 {[%emt 0:00:23]} 6. Bg5 {[%emt 0:00:00]} e6 {[%emt 0:00:14]} 7. Bc4 {[%emt 0:01:28]} Be7 {[%emt 0:00:19]} 8. Qd2 {[%emt 0:01:07]} b5 {[%emt 0:00:17] B95: Sicilian Najdorf: 6 Bg5 e6, unusual White 7th moves.} 9. Bd3 {[%emt 0:03:51]} Bb7 {[%emt 0:00:20]} 10. a3 {[%emt 0:04:06]} Nbd7 {[%emt 0:00:29] Black is slightly better.} 11. f4 {[%emt 0:02:16][%cal Bf2f4,Bf4e5][%mdl 32] [#]} Rc8 $146 {[%emt 0:00:22]} ({Predecessor:} 11... Qb6 12. Nb3 h6 13. Bxf6 Bxf6 14. Rf1 Rc8 15. Nd1 O-O 16. c3 e5 17. g3 Rfe8 {0-1 Berger,N (1738)-Rigolot,L (1946) FRA-GER m U14 2010 (3.4)}) 12. Qe2 {[%emt 0:00:57]} (12. O-O-O $15) 12... Qb6 $17 {[%emt 0:00:25]} 13. Nb3 {[%emt 0:02:13]} O-O $2 {[%emt 0:02:06] [#]} ({Better is} 13... h6 $17 14. Bxf6 Bxf6) 14. e5 $14 {[%emt 0:00:48]} dxe5 {[%emt 0:00:35]} 15. fxe5 {[%emt 0:00:40]} Nd5 {[%emt 0:00:51] This costs Black the game.} (15... Nxe5 $14 16. Qxe5 Ng4) 16. Nxd5 $18 {[%emt 0:00:40][%mdl 64] Remove Defender. White is clearly better.} exd5 {[%emt 0:00:13]} 17. Bxe7 {[%emt 0:04:15]} Rfe8 {[%emt 0:00:06] [#]} 18. Qh5 $1 {[%emt 0:03:21][%csl Gd3][%cal Rh5h7]} ({Not} 18. Bd6 Rc6 $11) 18... h6 $2 {[%emt 0:00:25] Weighted Error Value: White=0.19 (very precise) /Black=0.62} (18... g6 19. Qh4 (19. Qg5 h6 $11) 19... Qe6) *

[Event "CZE-ch U10 Open 2023"]
[Site "Teplice"]
[Date "2023.03.18"]
[Round "9.9"]
[White "Davidek, Zdenek"]
[Black "Hozda, Max"]
[Result "*"]
[WhiteElo "1957"]
[BlackElo "2067"]
[Annotator "TA"]
[PlyCount "22"]
[EventDate "2023.03.09"]
[EventType "swiss"]
[EventCountry "CZE"]
[SourceTitle "playchess.com"]
[Source "ChessBase"]
[SourceQuality "1"]
[TimeControl "40/5400+30:1800+30"]

{[%evp 11,22,17,7,3,24,-9,59,11,87,35,82,47,120]} 1. e4 {[%emt 0:00:28]} e5 {[%emt 0:00:08]} 2. Nf3 {[%emt 0:00:33]} Nc6 {[%emt 0:00:06]} 3. Bc4 {[%emt 0:00:42]} Nf6 {[%emt 0:00:06]} 4. Ng5 {[%emt 0:01:01]} d5 {[%emt 0:00:12]} 5. exd5 {[%emt 0:00:55]} b5 {[%emt 0:00:05]} 6. dxc6 {[%emt 0:04:33]} bxc4 {[%emt 0:00:11]} 7. Nc3 {[%emt 0:02:35] C57: Two Knights: Wilkes-Barre/Traxler and 4 Ng5 d5 5 exd5, unusual Black 5th moves.} Bc5 {[%emt 0:00:55]} 8. d3 {[%emt 0:03:57] [#]} h6 $146 {[%emt 0:01:53]} ({Black should try} 8... cxd3 $11 9. Qxd3 Qxd3 10. cxd3 Ba6) ({Predecessor:} 8... cxd3 9. Qxd3 Qxd3 10. cxd3 Ba6 11. Nge4 Bb4 12. Be3 Nxe4 13. dxe4 Bxc3+ 14. bxc3 Bb5 {1-0 Garcia,A (1504)-Jonsson,G (1644) IECC Swiss email 2003}) 9. Nf3 {[%emt 0:03:23]} (9. Nge4 $14 Nxe4 10. dxe4 (10. Nxe4 Bb6 $11)) 9... Bg4 {[%emt 0:00:51]} (9... cxd3 $11 10. Qxd3 O-O) 10. h3 {[%emt 0:02:13]} (10. dxc4 $16 {Qxd8+ would be deadly.} Qxd1+ 11. Nxd1) 10... Be6 {[%emt 0:05:01]} (10... Bxf3 $14 11. Qxf3 cxd3) 11. Nxe5 {[%emt 0:04:18] Excellent horsemanship.} Qd4 {[%emt 0:00:48] Black did not feel at home in the position after the opening.   Weighted Error Value: White=0.33/Black=0.53} (11... Bxf2+ $1 $14 12. Kxf2 Qd4+ 13. Be3 Qxe5) *

[Event "CZE-ch U10 Open 2023"]
[Site "Teplice"]
[Date "2023.03.18"]
[Round "9.9"]
[White "Galia, Simon"]
[Black "Koutecky, Vaclav"]
[Result "1/2-1/2"]
[ECO "C57"]
[WhiteElo "1071"]
[BlackElo "2060"]
[Annotator "TA"]
[PlyCount "61"]
[EventDate "2023.03.09"]
[EventType "swiss"]
[EventCountry "CZE"]
[SourceTitle "playchess.com"]
[Source "ChessBase"]
[SourceQuality "1"]
[TimeControl "40/5400+30:1800+30"]

{[%evp 11,61,5,5,9,33,8,45,13,88,26,103,60,123,125,117,87,72,62,104,95,138,64,77,-8,-7,-6,38,-3,35,49,61,53,54,56,56,49,57,26,62,54,74,75,73,48,52,21,71,4,100,100,93,93]} 1. e4 {[%emt 0:00:28]} e5 {[%emt 0:00:08]} 2. Nf3 {[%emt 0:00:33]} Nc6 {[%emt 0:00:06]} 3. Bc4 {[%emt 0:00:42]} Nf6 {[%emt 0:00:06]} 4. Ng5 {[%emt 0:01:01]} d5 {[%emt 0:00:12]} 5. exd5 {[%emt 0:00:55]} b5 {[%emt 0:00:05]} 6. dxc6 {[%emt 0:04:33]} bxc4 {[%emt 0:00:11]} 7. Nc3 {[%emt 0:02:35] C57: Two Knights: Wilkes-Barre/Traxler and 4 Ng5 d5 5 exd5, unusual Black 5th moves.} Bc5 {[%emt 0:00:55]} 8. d3 {[%emt 0:03:57] [#]} h6 $146 {[%emt 0:01:53]} (8... cxd3 {simplifies} 9. Qxd3 Qxd3 10. cxd3 Ba6) ({Predecessor:} 8... cxd3 9. Qxd3 Qxd3 10. cxd3 Ba6 11. Nge4 Bb4 12. Be3 Nxe4 13. dxe4 Bxc3+ 14. bxc3 Bb5 {1-0 Garcia,A (1504)-Jonsson,G (1644) IECC Swiss email 2003}) 9. Nf3 {[%emt 0:03:23] Excellent horsemanship. White is slightly better.} Bg4 {[%emt 0:00:51]} (9... cxd3 $11 10. Qxd3 Qe7) 10. h3 {[%emt 0:02:13]} (10. dxc4 $16 {Strongly threatening Qxd8+.} Qxd1+ 11. Nxd1) 10... Be6 {[%emt 0:05:01]} (10... Bxf3 $11 {remains equal.} 11. Qxf3 cxd3) 11. Nxe5 {[%emt 0:04:18]} Qd4 {[%emt 0:00:48]} (11... Bxf2+ $14 12. Kxf2 Qd4+ 13. Be3 Qxe5) 12. Qe2 $16 {[%emt 0:03:37]} O-O {[%emt 0:04:35]} 13. Nf3 {[%emt 0:02:32]} (13. dxc4 $6 Rae8 14. Nf3 (14. O-O Bxh3 15. Nb5 Qh4 $15) 14... Qxc4 $14) 13... Qd6 {[%emt 0:02:33]} 14. Be3 {[%emt 0:03:45]} (14. dxc4 Rfe8 15. O-O (15. Be3 Bxe3 16. fxe3 Qb4 $11) 15... Bxh3 $11) 14... Bb6 {[%emt 0:01:49]} 15. O-O {[%emt 0:01:50]} ({But not} 15. dxc4 Bxe3 16. fxe3 (16. Qxe3 Bxc4 17. Ne5 Rfe8 $11) 16... Qb4 $14) 15... Rfe8 {[%emt 0:01:37]} 16. Rad1 {[%emt 0:02:01]} (16. dxc4 $16 {[%cal Oc4c5] Hoping for c5!} Bxe3 17. fxe3) 16... Qxc6 $14 {[%emt 0:06:30]} 17. Rd2 {[%emt 0:04:48]} (17. Ne5 $16 Qb7 18. d4 (18. Nxc4 Bxc4 {[%mdl 64] Remove Defender} 19. dxc4 Bxe3 $14) (18. dxc4 Bxe3 19. Qxe3 Bxc4 $11)) 17... cxd3 $11 {[%emt 0:05:06]} 18. cxd3 {[%emt 0:02:16]} (18. Qxd3 $2 {too greedy.} Bc4 19. Nd4 Bxd3 $19) 18... Bf5 {[%emt 0:06:46]} 19. Re1 {[%emt 0:02:55]} Rad8 {[%emt 0:08:35]} 20. Qd1 {[%emt 0:02:47]} Re7 {[%emt 0:03:25]} 21. Bxb6 {[%emt 0:01:17]} Rxe1+ {[%emt 0:00:12]} 22. Qxe1 {[%emt 0:01:17]} axb6 {[%emt 0:00:45]} 23. Qd1 {[%emt 0:01:43]} Qb7 {[%emt 0:04:42]} 24. d4 {[%emt 0:02:37]} c6 {[%emt 0:00:54]} 25. b4 {[%emt 0:02:53]} Nd5 {[%emt 0:02:01]} 26. Nxd5 {[%emt 0:01:04]} cxd5 {[%emt 0:00:17]} 27. Re2 {[%emt 0:01:26]} Qa6 {[%emt 0:01:55]} 28. Qd2 {[%emt 0:02:32]} b5 {[%emt 0:02:01]} (28... Be4 $11) 29. Qb2 {[%emt 0:01:21]} ({White should play} 29. Ne5 $16) 29... Qg6 {[%emt 0:06:17]} (29... Rc8 $11 {keeps the balance.}) 30. Nh4 $16 Qg5 {[%emt 0:03:46]} 31. Nxf5 {[%emt 0:02:22] Weighted Error Value: White=0.29 (precise) /Black=0.33} 1/2-1/2

[Event "CZE-ch U10 Open 2023"]
[Site "Teplice"]
[Date "2023.03.18"]
[Round "9.10"]
[White "Mohapl, Tomas"]
[Black "Zezula, Jakub"]
[Result "*"]
[WhiteElo "1946"]
[BlackElo "1963"]
[Annotator "TA"]
[PlyCount "19"]
[EventDate "2023.03.09"]
[EventType "swiss"]
[EventCountry "CZE"]
[SourceTitle "playchess.com"]
[Source "ChessBase"]
[SourceQuality "1"]
[TimeControl "40/5400+30:1800+30"]

{[%evp 15,19,31,64,26,36,12]} 1. e4 {[%emt 0:00:05]} e5 {[%emt 0:00:42]} 2. Nf3 {[%emt 0:00:20]} Nc6 {[%emt 0:00:30]} 3. Bc4 {[%emt 0:00:21]} Be7 {[%emt 0:01:26]} 4. O-O {[%emt 0:00:40]} Nf6 {[%emt 0:00:49]} 5. d3 {[%emt 0:00:35]} O-O {[%emt 0:00:48]} 6. Re1 {[%emt 0:00:56]} d6 {[%emt 0:01:35][%cal Bd7d6,Bd6d5][%mdl 32]} 7. c3 {[%emt 0:00:53]} Bg4 {[%emt 0:03:35]} 8. Nbd2 {[%emt 0:02:22]} Qd7 {[%emt 0:04:30] [#]} 9. Nb3 $146 {[%emt 0:04:30] C55: Two Knights: 4 d3, 4 d4 exd4 5 e5 and Max Lange Attack.} ({Predecessor:} 9. Bb3 Rad8 10. Nf1 Na5 11. Bc2 c5 12. h3 Bh5 13. Ng3 Bg6 14. Nh4 Nc6 15. Nhf5 Rfe8 16. Qf3 Bxf5 17. Nxf5 {1-0 Hansen,S (2274)-Ardila,O (2017) Titled Tuesday intern op 17th Nov blitz 2020 (10)}) 9... d5 {[%emt 0:07:25]} 10. Bb5 {[%emt 0:02:15]} *

[Event "CZE-ch U10 Open 2023"]
[Site "Teplice"]
[Date "2023.03.18"]
[Round "9.10"]
[White "Fadrny, Jonas"]
[Black "Vorlik, Jachym"]
[Result "1-0"]
[ECO "C50"]
[WhiteElo "1247"]
[BlackElo "1204"]
[Annotator "NA RC COMBH"]
[PlyCount "135"]
[EventDate "2023.03.09"]
[EventType "swiss"]
[EventCountry "CZE"]
[SourceTitle "playchess.com"]
[Source "ChessBase"]
[SourceQuality "1"]
[TimeControl "40/5400+30:1800+30"]

1. e4 {[%emt 0:00:05]} e5 {[%emt 0:00:42]} 2. Nf3 {[%emt 0:00:20]} Nc6 {[%emt 0:00:30]} 3. Bc4 {[%emt 0:00:21]} Be7 {[%emt 0:01:26]} 4. O-O {[%emt 0:00:40]} Nf6 {[%emt 0:00:49]} 5. d3 {[%emt 0:00:35]} O-O {[%emt 0:00:48]} 6. Re1 {[%emt 0:00:56]} d6 {[%emt 0:01:35]} 7. c3 {[%emt 0:00:53]} Bg4 {[%emt 0:03:35]} 8. Nbd2 {[%emt 0:02:22]} Qd7 {[%emt 0:04:30]} 9. Nb3 {[%emt 0:04:30]} d5 {[%emt 0:07:25]} 10. Bb5 {[%emt 0:02:15]} dxe4 {[%emt 0:03:32]} 11. Nxe5 {[%emt 0:04:20]} Bxd1 {[%emt 0:02:23]} 12. Nxd7 {[%emt 0:00:29]} Nxd7 {[%emt 0:01:15]} 13. Rxd1 {[%emt 0:00:02]} Nf6 {[%emt 0:02:55]} 14. Bxc6 {[%emt 0:00:30]} bxc6 {[%emt 0:02:44]} 15. dxe4 {[%emt 0:00:26]} Bd6 {[%emt 0:04:44]} 16. f3 {[%emt 0:00:42]} Rad8 {[%emt 0:00:32]} 17. Be3 {[%emt 0:00:48]} a6 {[%emt 0:01:17]} 18. Bc5 {[%emt 0:01:12]} Rfe8 {[%emt 0:01:49]} 19. Bxd6 {[%emt 0:03:35]} cxd6 {[%emt 0:01:35]} 20. Na5 {[%emt 0:00:33]} c5 {[%emt 0:01:26]} 21. Nc6 {[%emt 0:01:29]} Rd7 {[%emt 0:02:08]} 22. e5 {[%emt 0:03:07]} dxe5 {[%emt 0:02:59]} 23. Rxd7 {[%emt 0:01:36]} Nxd7 {[%emt 0:01:24]} 24. Rd1 {[%emt 0:01:24]} Nf6 {[%emt 0:01:41]} 25. g4 {[%emt 0:02:19]} h6 {[%emt 0:01:01]} 26. Re1 {[%emt 0:01:18]} e4 {[%emt 0:01:48]} 27. h3 {[%emt 0:08:25]} g5 {[%emt 0:05:44]} 28. Kf2 {[%emt 0:01:52]} Kg7 {[%emt 0:01:48]} 29. b4 {[%emt 0:02:00]} cxb4 {[%emt 0:03:51]} 30. Nxb4 {[%emt 0:00:25]} a5 {[%emt 0:04:02]} 31. Nc6 {[%emt 0:03:38]} Rc8 {[%emt 0:02:16]} 32. Nxa5 {[%emt 0:00:17]} exf3 {[%emt 0:00:30]} 33. Re3 {[%emt 0:00:51]} Rxc3 {[%emt 0:02:25]} 34. Rxc3 {[%emt 0:00:22]} Ne4+ {[%emt 0:00:20]} 35. Kxf3 {[%emt 0:00:11]} Nxc3 {[%emt 0:00:14]} 36. a3 {[%emt 0:00:27]} Nb5 {[%emt 0:02:09]} 37. Nc4 {[%emt 0:00:24]} Kf6 {[%emt 0:02:52]} 38. a4 {[%emt 0:00:21]} Na7 {[%emt 0:02:16]} 39. Nd6 {[%emt 0:01:36]} Ke6 {[%emt 0:01:44]} 40. Nf5 {[%emt 0:00:19]} Nc6 {[%emt 0:01:49]} 41. Nxh6 {[%emt 0:30:18]} f6 {[%emt 0:30:55]} 42. Ng8 {[%emt 0:01:23]} f5 {[%emt 0:05:14]} 43. Nh6 {[%emt 0:01:05]} fxg4+ {[%emt 0:02:08]} 44. Kxg4 {[%emt 0:00:26]} Kf6 {[%emt 0:00:44]} 45. Nf7 {[%emt 0:01:07]} Kxf7 {[%emt 0:01:24]} 46. Kxg5 {[%emt 0:00:19]} Kg7 {[%emt 0:00:43]} 47. Kf5 {[%emt 0:01:36]} Nd4+ {[%emt 0:01:42]} 48. Ke5 {[%emt 0:00:36]} Nc6+ {[%emt 0:00:19]} 49. Kd5 {[%emt 0:00:53]} Nb4+ {[%emt 0:00:53]} 50. Kc5 {[%emt 0:00:19]} Nd3+ {[%emt 0:00:35]} 51. Kb5 {[%emt 0:00:45]} Ne5 {[%emt 0:00:42]} 52. a5 {[%emt 0:00:24]} Nd7 {[%emt 0:01:07]} 53. a6 {[%emt 0:00:33]} Nb8 {[%emt 0:00:28]} 54. a7 {[%emt 0:00:12]} Na6 {[%emt 0:00:29]} 55. Kxa6 {[%emt 0:00:27]} Kf7 {[%emt 0:00:13]} 56. a8=Q {[%emt 0:00:17]} Ke6 {[%emt 0:00:10]} 57. Qe4+ {[%emt 0:00:28]} Kf6 {[%emt 0:00:24]} 58. Qf4+ {[%emt 0:02:08]} Ke6 {[%emt 0:00:17]} 59. Kb6 {[%emt 0:00:21]} Kd5 {[%emt 0:00:16]} 60. Kb5 {[%emt 0:01:17]} Ke6 {[%emt 0:00:20]} 61. Kc6 {[%emt 0:00:24]} Ke7 {[%emt 0:00:27]} 62. Qe4+ {[%emt 0:01:54]} Kf6 {[%emt 0:00:16]} 63. Kd6 {[%emt 0:00:27]} Kf7 {[%emt 0:00:22]} 64. Qf5+ {[%emt 0:00:34]} Kg7 {[%emt 0:00:27]} 65. Ke7 {[%emt 0:00:41]} Kh6 {[%emt 0:00:18]} 66. Qg4 {[%emt 0:00:32]} Kh7 {[%emt 0:00:14]} 67. Kf7 {[%emt 0:00:30]} Kh6 {[%emt 0:00:16]} 68. Qg6# {[%emt 0:00:08]} 1-0

[Event "CZE-ch U10 Open 2023"]
[Site "Teplice"]
[Date "2023.03.18"]
[Round "9.11"]
[White "Kubin, Tomas Daniel"]
[Black "Sigut, Ondrej"]
[Result "*"]
[WhiteElo "1936"]
[BlackElo "1804"]
[Annotator "TA"]
[PlyCount "14"]
[EventDate "2023.03.09"]
[EventType "swiss"]
[EventCountry "CZE"]
[SourceTitle "playchess.com"]
[Source "ChessBase"]
[SourceQuality "1"]
[TimeControl "40/5400+30:1800+30"]

{[%evp 9,14,-12,-3,-46,-34,-114,-40]} 1. e4 {[%emt 0:00:39]} c5 {[%emt 0:00:13]} 2. Nc3 {[%emt 0:01:11]} g6 {[%emt 0:00:39]} 3. f4 {[%emt 0:01:05]} Bg7 {[%emt 0:01:45]} 4. e5 {[%emt 0:02:56]} f6 {[%emt 0:04:59]} 5. Nf3 {[%emt 0:03:10]} Nc6 {[%emt 0:06:10][%cal Rf6e5]} 6. exf6 {[%emt 0:01:27] B23: Closed Sicilian: Lines without g3.} Nxf6 {[%emt 0:01:23]} 7. Bc4 {[%emt 0:01:33] [#]} (7. d3 $15) 7... d6 $146 {[%emt 0:06:51]} (7... d5 $17 8. Bb5 O-O) ({Predecessor:} 7... d5 8. Bb3 Bf5 9. O-O a6 10. Ne5 c4 11. Nxd5 cxb3 12. Nxf6+ Bxf6 13. cxb3 Nxe5 14. fxe5 Bxe5 {0-1 Arias Castano,A-Fernandez Velasco,C Asturias-chT40 Primera B 2000 (7)}) *

[Event "CZE-ch U10 Open 2023"]
[Site "Teplice"]
[Date "2023.03.18"]
[Round "9.11"]
[White "Broz, Pavel"]
[Black "Bucek, Vit"]
[Result "0-1"]
[ECO "B23"]
[WhiteElo "1870"]
[BlackElo "1198"]
[Annotator "NA RC COMBH"]
[PlyCount "40"]
[EventDate "2023.03.09"]
[EventType "swiss"]
[EventCountry "CZE"]
[SourceTitle "playchess.com"]
[Source "ChessBase"]
[SourceQuality "1"]
[TimeControl "40/5400+30:1800+30"]

1. e4 {[%emt 0:00:39]} c5 {[%emt 0:00:13]} 2. Nc3 {[%emt 0:01:11]} g6 {[%emt 0:00:39]} 3. f4 {[%emt 0:01:05]} Bg7 {[%emt 0:01:45]} 4. e5 {[%emt 0:02:56]} f6 {[%emt 0:04:59]} 5. Nf3 {[%emt 0:03:10]} Nc6 {[%emt 0:06:10]} 6. exf6 {[%emt 0:01:27]} Nxf6 {[%emt 0:01:23]} 7. Bc4 {[%emt 0:01:33]} d6 {[%emt 0:06:51]} 8. d3 {[%emt 0:02:52]} Bg4 {[%emt 0:16:40]} 9. Be3 {[%emt 0:08:14]} e6 {[%emt 0:03:54]} 10. h3 {[%emt 0:01:52]} Bxf3 {[%emt 0:03:18]} 11. Qxf3 {[%emt 0:00:16]} Qd7 {[%emt 0:00:54]} 12. g4 {[%emt 0:01:21]} O-O-O {[%emt 0:06:25]} 13. O-O-O {[%emt 0:01:35]} d5 {[%emt 0:03:20]} 14. Bb3 {[%emt 0:01:07]} d4 {[%emt 0:00:58]} 15. g5 {[%emt 0:01:00]} Nh5 {[%emt 0:00:57]} 16. Qe4 {[%emt 0:00:21]} Rhe8 {[%emt 0:01:31]} 17. Ne2 {[%emt 0:01:06]} dxe3 {[%emt 0:00:48]} 18. Qxe3 {[%emt 0:00:04]} Nd4 {[%emt 0:02:07]} 19. Qe4 {[%emt 0:01:18]} Nxe2+ {[%emt 0:00:32]} 20. Qxe2 {[%emt 0:00:04]} Ng3 {[%emt 0:00:31]} 0-1

[Event "CZE-ch U10 Open 2023"]
[Site "Teplice"]
[Date "2023.03.18"]
[Round "9.12"]
[White "Mrazek, Adam"]
[Black "Tesar, Jakub"]
[Result "*"]
[WhiteElo "1745"]
[BlackElo "1960"]
[Annotator "TA"]
[PlyCount "25"]
[EventDate "2023.03.09"]
[EventType "swiss"]
[EventCountry "CZE"]
[SourceTitle "playchess.com"]
[Source "ChessBase"]
[SourceQuality "1"]
[TimeControl "40/5400+30:1800+30"]

{[%evp 9,11,4,33,2]} 1. d4 {[%emt 0:00:18]} d5 {[%emt 0:00:16]} 2. c4 {[%emt 0:01:22]} e6 {[%emt 0:00:42]} 3. Nc3 {[%emt 0:01:16]} Nf6 {[%emt 0:01:07]} 4. Bf4 {[%emt 0:01:33]} Bb4 {[%emt 0:10:43]} 5. Nf3 {[%emt 0:07:52]} Ne4 {[%emt 0:05:16]} 6. Bd2 {[%emt 0:03:04] [#] A rather calm draw.  D38: Queen's Gambit Declined: Ragozin Defence (4 Nf3 Bb4).} ({But not} 6. Qa4+ Nc6 7. Rc1 O-O $11) {Predecessor:} 6... Nxd2 $146 7. Qxd2 O-O 8. e3 Nd7 9. Bd3 dxc4 10. Bxc4 b6 11. O-O Bb7 12. a3 Bd6 13. d5 {1-0 Katznelson,R (998)-Chen,G (1158) Toronto NAYCC U14 2013 (7)} *